[Event "Early-Titled-Tuesday-Blitz-February-06-2024"]
[Site "Chess.com"]
[Date "2024.02.06"]
[Round "11"]
[White "ActorXu"]
[Black "Caroexpert"]
[Result "0-1"]
[WhiteElo "2821"]
[BlackElo "2591"]
[TimeControl "180+1"]
[EndTime "10:06:39 PST"]
[Termination "Caroexpert won by checkmate"]

1. e4 {[%clk 0:03:00.9]} 1... c6 {[%clk 0:02:56.3]} 2. d4 {[%clk 0:02:58.5]}
2... d5 {[%clk 0:02:56.5]} 3. e5 {[%clk 0:02:58.5]} 3... Bf5 {[%clk 0:02:53.5]}
4. h4 {[%clk 0:02:58.2]} 4... Qb6 {[%clk 0:02:49.6]} 5. g4 {[%clk 0:02:55.8]}
5... Bd7 {[%clk 0:02:48.7]} 6. h5 {[%clk 0:02:46.8]} 6... c5 {[%clk 0:02:28.6]}
7. dxc5 {[%clk 0:02:46.3]} 7... Qxc5 {[%clk 0:02:26.5]} 8. Be3 {[%clk
0:02:39.4]} 8... Qc7 {[%clk 0:02:19.4]} 9. f4 {[%clk 0:02:35.2]} 9... e6 {[%clk
0:02:03]} 10. Nf3 {[%clk 0:02:33.7]} 10... Nc6 {[%clk 0:01:59.8]} 11. Nc3 {[%clk
0:02:32.6]} 11... f6 {[%clk 0:01:59.8]} 12. Nb5 {[%clk 0:02:09.7]} 12... Qb8
{[%clk 0:01:56.8]} 13. Qd2 {[%clk 0:02:03.8]} 13... a6 {[%clk 0:01:54.6]} 14.
Nbd4 {[%clk 0:02:02.9]} 14... Nge7 {[%clk 0:01:52.7]} 15. O-O-O {[%clk
0:01:57.6]} 15... fxe5 {[%clk 0:01:51.7]} 16. fxe5 {[%clk 0:01:57.8]} 16... Nxd4
{[%clk 0:01:47]} 17. Bxd4 {[%clk 0:01:55.3]} 17... Nc6 {[%clk 0:01:46.6]} 18.
Bd3 {[%clk 0:01:47.8]} 18... Nxd4 {[%clk 0:01:40.7]} 19. Nxd4 {[%clk 0:01:47.6]}
19... Bc5 {[%clk 0:01:33.5]} 20. h6 {[%clk 0:01:41.7]} 20... Qxe5 {[%clk
0:01:26.5]} 21. Nf3 {[%clk 0:01:32.5]} 21... Qf6 {[%clk 0:00:43.5]} 22. Rdf1
{[%clk 0:01:24.3]} 22... O-O-O {[%clk 0:00:40.8]} 23. Ng5 {[%clk 0:01:14.1]}
23... Qe5 {[%clk 0:00:35.6]} 24. Nf7 {[%clk 0:01:13.4]} 24... Qg3 {[%clk
0:00:32.4]} 25. Qc3 {[%clk 0:01:04.2]} 25... Qe3+ {[%clk 0:00:28]} 26. Kb1
{[%clk 0:01:04.1]} 26... Rhf8 {[%clk 0:00:16.7]} 27. hxg7 {[%clk 0:01:00.7]}
27... Rg8 {[%clk 0:00:14]} 28. Nxd8 {[%clk 0:00:56.3]} 28... Kxd8 {[%clk
0:00:13.5]} 29. Rxh7 {[%clk 0:00:44.1]} 29... Bd4 {[%clk 0:00:08.7]} 30. Rf8+
{[%clk 0:00:34.8]} 30... Ke7 {[%clk 0:00:07.9]} 31. a3 {[%clk 0:00:10.6]} 31...
Bxc3 {[%clk 0:00:07.6]} 32. Rxg8 {[%clk 0:00:10.6]} 32... Qb6 {[%clk 0:00:05.9]}
33. Re8+ {[%clk 0:00:09.5]} 33... Kd6 {[%clk 0:00:05.8]} 34. Kc1 {[%clk
0:00:04.9]} 34... Qg1+ {[%clk 0:00:05.6]} 35. Bf1 {[%clk 0:00:04.5]} 35... Qxf1#
{[%clk 0:00:05.6]} 0-1

[Event "Early-Titled-Tuesday-Blitz-February-06-2024"]
[Site "Chess.com"]
[Date "2024.02.06"]
[Round "11"]
[White "ImportedItalianMaple"]
[Black "ansko1999"]
[Result "0-1"]
[WhiteElo "2510"]
[BlackElo "2681"]
[TimeControl "180+1"]
[EndTime "10:06:44 PST"]
[Termination "ansko1999 won on time"]

1. Nf3 {[%clk 0:03:00.9]} 1... b6 {[%clk 0:02:59]} 2. e4 {[%clk 0:02:57.8]} 2...
Bb7 {[%clk 0:02:58.1]} 3. Nc3 {[%clk 0:02:58.2]} 3... e6 {[%clk 0:02:56.9]} 4.
a3 {[%clk 0:02:56.3]} 4... Nf6 {[%clk 0:02:53.9]} 5. e5 {[%clk 0:02:54.6]} 5...
Nd5 {[%clk 0:02:52.9]} 6. Nxd5 {[%clk 0:02:53]} 6... Bxd5 {[%clk 0:02:53.1]} 7.
c4 {[%clk 0:02:52.7]} 7... Bb7 {[%clk 0:02:52.9]} 8. d4 {[%clk 0:02:53.1]} 8...
d6 {[%clk 0:02:51.2]} 9. Bf4 {[%clk 0:02:33.7]} 9... Nd7 {[%clk 0:02:46.9]} 10.
exd6 {[%clk 0:02:31.8]} 10... Bxd6 {[%clk 0:02:46.7]} 11. Bxd6 {[%clk
0:02:31.6]} 11... cxd6 {[%clk 0:02:47.6]} 12. Bd3 {[%clk 0:02:26.9]} 12... O-O
{[%clk 0:02:46.8]} 13. O-O {[%clk 0:02:27.3]} 13... d5 {[%clk 0:02:38.7]} 14. b3
{[%clk 0:02:03.4]} 14... dxc4 {[%clk 0:02:30.6]} 15. bxc4 {[%clk 0:02:03]} 15...
Qf6 {[%clk 0:02:28.6]} 16. Qe2 {[%clk 0:01:54.7]} 16... Bxf3 {[%clk 0:02:16]}
17. Qxf3 {[%clk 0:01:55]} 17... Qxd4 {[%clk 0:02:15.4]} 18. Rad1 {[%clk
0:01:36.4]} 18... Qf6 {[%clk 0:01:54.3]} 19. Bxh7+ {[%clk 0:01:32.5]} 19... Kxh7
{[%clk 0:01:54.4]} 20. Qe4+ {[%clk 0:01:25.4]} 20... Qg6 {[%clk 0:01:48.1]} 21.
Qh4+ {[%clk 0:01:13.1]} 21... Qh6 {[%clk 0:01:46.3]} 22. Qe4+ {[%clk 0:01:02.9]}
22... f5 {[%clk 0:01:43.2]} 23. Qc6 {[%clk 0:00:45.3]} 23... Ne5 {[%clk
0:01:38.3]} 24. Qc7 {[%clk 0:00:43.2]} 24... Qf4 {[%clk 0:01:31.7]} 25. Rd7
{[%clk 0:00:36.4]} 25... Rg8 {[%clk 0:01:15.7]} 26. Re1 {[%clk 0:00:35.4]} 26...
Ng6 {[%clk 0:01:10.2]} 27. Qb7 {[%clk 0:00:30]} 27... Rad8 {[%clk 0:01:01.8]}
28. g3 {[%clk 0:00:23.5]} 28... Rxd7 {[%clk 0:01:00.2]} 29. Qxd7 {[%clk
0:00:22.6]} 29... Qxc4 {[%clk 0:00:54.6]} 30. Qxa7 {[%clk 0:00:23.1]} 30... Qc6
{[%clk 0:00:42]} 31. Qf7 {[%clk 0:00:19.9]} 31... Rf8 {[%clk 0:00:39.6]} 32. Qa7
{[%clk 0:00:13.9]} 32... e5 {[%clk 0:00:35.5]} 33. Rb1 {[%clk 0:00:13.8]} 33...
b5 {[%clk 0:00:35]} 34. Rd1 {[%clk 0:00:13.6]} 34... Ra8 {[%clk 0:00:30.9]} 35.
Qf7 {[%clk 0:00:11.6]} 35... Qf6 {[%clk 0:00:20.1]} 36. Qb7 {[%clk 0:00:10.1]}
36... Rxa3 {[%clk 0:00:18.3]} 37. Qxb5 {[%clk 0:00:10.8]} 37... e4 {[%clk
0:00:17.1]} 38. Rd5 {[%clk 0:00:09.3]} 38... Rf3 {[%clk 0:00:14.5]} 39. Qb1
{[%clk 0:00:07.3]} 39... Ne7 {[%clk 0:00:12.9]} 40. Rb5 {[%clk 0:00:06.6]} 40...
Nc6 {[%clk 0:00:13.1]} 41. Rb6 {[%clk 0:00:06.7]} 41... Qc3 {[%clk 0:00:10]} 42.
Qe1 {[%clk 0:00:04.3]} 42... Qxe1+ {[%clk 0:00:09.9]} 0-1

[Event "Early-Titled-Tuesday-Blitz-February-06-2024"]
[Site "Chess.com"]
[Date "2024.02.06"]
[Round "11"]
[White "AttilaTurzo"]
[Black "Boundless_Strike"]
[Result "0-1"]
[WhiteElo "2476"]
[BlackElo "2661"]
[TimeControl "180+1"]
[EndTime "10:06:45 PST"]
[Termination "Boundless_Strike won on time"]

1. d4 {[%clk 0:03:00.9]} 1... e5 {[%clk 0:02:59.5]} 2. dxe5 {[%clk 0:02:58.7]}
2... d6 {[%clk 0:03:00]} 3. e4 {[%clk 0:02:49.1]} 3... Nc6 {[%clk 0:02:58.6]} 4.
Nf3 {[%clk 0:02:43.3]} 4... Bg4 {[%clk 0:02:58.3]} 5. Be2 {[%clk 0:02:36.4]}
5... Qd7 {[%clk 0:02:54.6]} 6. Be3 {[%clk 0:02:18.9]} 6... O-O-O {[%clk
0:02:52.1]} 7. Nbd2 {[%clk 0:02:16.1]} 7... dxe5 {[%clk 0:02:48.2]} 8. c3 {[%clk
0:02:11.1]} 8... f5 {[%clk 0:02:45.3]} 9. exf5 {[%clk 0:02:04.6]} 9... Nf6
{[%clk 0:02:42]} 10. Qa4 {[%clk 0:01:43.9]} 10... Qxf5 {[%clk 0:01:54.4]} 11.
Bb5 {[%clk 0:01:36.9]} 11... Nd5 {[%clk 0:01:02.7]} 12. Bxc6 {[%clk 0:01:26.4]}
12... Nxe3 {[%clk 0:00:57.2]} 13. fxe3 {[%clk 0:00:53.1]} 13... bxc6 {[%clk
0:00:51.7]} 14. Qxc6 {[%clk 0:00:43.4]} 14... Bxf3 {[%clk 0:00:30.1]} 15. Nxf3
{[%clk 0:00:30.2]} 15... Qc2 {[%clk 0:00:21]} 16. Qa8+ {[%clk 0:00:25.8]} 16...
Kd7 {[%clk 0:00:21.1]} 17. Rd1+ {[%clk 0:00:26]} 17... Bd6 {[%clk 0:00:21.2]}
18. Nxe5+ {[%clk 0:00:14.1]} 18... Ke7 {[%clk 0:00:19.7]} 19. Nc6+ {[%clk
0:00:13.7]} 19... Kd7 {[%clk 0:00:19.9]} 20. Nxd8 {[%clk 0:00:13.7]} 20... Rxd8
{[%clk 0:00:18.7]} 21. Qf3 {[%clk 0:00:13.1]} 21... Qxb2 {[%clk 0:00:06.7]} 22.
O-O {[%clk 0:00:11.4]} 22... Qxc3 {[%clk 0:00:07.1]} 23. Rc1 {[%clk 0:00:09.1]}
23... Qe5 {[%clk 0:00:06.6]} 24. Qf7+ {[%clk 0:00:07.7]} 24... Kc8 {[%clk
0:00:06.5]} 25. Qf5+ {[%clk 0:00:06.4]} 25... Qxf5 {[%clk 0:00:07]} 26. Rxf5
{[%clk 0:00:07.1]} 26... Re8 {[%clk 0:00:07.1]} 27. Rf3 {[%clk 0:00:05.2]} 27...
Re4 {[%clk 0:00:06.7]} 28. h3 {[%clk 0:00:05.2]} 28... Ra4 {[%clk 0:00:05.9]}
29. Rc2 {[%clk 0:00:05.5]} 29... Kd8 {[%clk 0:00:05.1]} 30. Rf7 {[%clk
0:00:04.7]} 30... Be5 {[%clk 0:00:05.6]} 31. Kf2 {[%clk 0:00:04.5]} 31... Ke8
{[%clk 0:00:05.4]} 32. Rf5 {[%clk 0:00:04]} 32... Bd6 {[%clk 0:00:05.9]} 33. Rd5
{[%clk 0:00:04]} 33... Ke7 {[%clk 0:00:05.8]} 34. Rd3 {[%clk 0:00:03.9]} 34...
Ke6 {[%clk 0:00:04.9]} 35. Kf3 {[%clk 0:00:03.7]} 35... g6 {[%clk 0:00:04.5]}
36. e4 {[%clk 0:00:03.3]} 36... Ra5 {[%clk 0:00:04.7]} 37. Rd5 {[%clk
0:00:02.1]} 37... Ra4 {[%clk 0:00:05.2]} 0-1

[Event "Early-Titled-Tuesday-Blitz-February-06-2024"]
[Site "Chess.com"]
[Date "2024.02.06"]
[Round "11"]
[White "wonderfultime"]
[Black "platy3"]
[Result "0-1"]
[WhiteElo "3047"]
[BlackElo "2947"]
[TimeControl "180+1"]
[EndTime "10:06:46 PST"]
[Termination "platy3 won on time"]

1. d4 {[%clk 0:03:00.9]} 1... Nf6 {[%clk 0:02:57.6]} 2. Nf3 {[%clk 0:03:00.4]}
2... d5 {[%clk 0:02:56.8]} 3. Bg5 {[%clk 0:03:00.9]} 3... c5 {[%clk 0:02:55.8]}
4. c3 {[%clk 0:02:59.2]} 4... e6 {[%clk 0:02:53.2]} 5. e3 {[%clk 0:02:58.8]}
5... Nc6 {[%clk 0:02:53]} 6. Nbd2 {[%clk 0:02:59.1]} 6... h6 {[%clk 0:02:52.3]}
7. Bh4 {[%clk 0:02:59.2]} 7... Bd6 {[%clk 0:02:52.3]} 8. Bd3 {[%clk 0:02:59.1]}
8... O-O {[%clk 0:02:51.8]} 9. O-O {[%clk 0:02:59.5]} 9... b6 {[%clk 0:02:50.1]}
10. Qe2 {[%clk 0:02:58.5]} 10... Bb7 {[%clk 0:02:49.7]} 11. e4 {[%clk
0:02:56.9]} 11... Be7 {[%clk 0:02:28.3]} 12. Bxf6 {[%clk 0:02:51.5]} 12... Bxf6
{[%clk 0:02:27.6]} 13. e5 {[%clk 0:02:52]} 13... Be7 {[%clk 0:02:28]} 14. a3
{[%clk 0:02:51]} 14... a5 {[%clk 0:02:26]} 15. Rfe1 {[%clk 0:02:42.7]} 15... Qc8
{[%clk 0:02:25.9]} 16. Nf1 {[%clk 0:02:31.2]} 16... Ba6 {[%clk 0:02:25.8]} 17.
Rad1 {[%clk 0:02:31.9]} 17... Bxd3 {[%clk 0:02:25.3]} 18. Rxd3 {[%clk
0:02:32.8]} 18... b5 {[%clk 0:02:18]} 19. Ng3 {[%clk 0:01:55.6]} 19... b4 {[%clk
0:02:16]} 20. a4 {[%clk 0:01:51.7]} 20... Qa6 {[%clk 0:02:12.9]} 21. dxc5 {[%clk
0:01:27.9]} 21... Bxc5 {[%clk 0:01:50.2]} 22. Nh5 {[%clk 0:01:27.5]} 22... bxc3
{[%clk 0:01:49.8]} 23. bxc3 {[%clk 0:01:20.1]} 23... Rfc8 {[%clk 0:01:48.9]} 24.
Nd2 {[%clk 0:01:05.6]} 24... Bf8 {[%clk 0:01:25.7]} 25. c4 {[%clk 0:00:51.2]}
25... dxc4 {[%clk 0:01:06.5]} 26. Rg3 {[%clk 0:00:46.6]} 26... Nd4 {[%clk
0:01:06.6]} 27. Nf6+ {[%clk 0:00:40.1]} 27... Kh8 {[%clk 0:01:06.6]} 28. Qh5
{[%clk 0:00:41]} 28... Bb4 {[%clk 0:00:14.5]} 29. Nde4 {[%clk 0:00:18.2]} 29...
Nf5 {[%clk 0:00:13.1]} 30. Ng5 {[%clk 0:00:13.7]} 30... Ra7 {[%clk 0:00:12.7]}
31. Rd1 {[%clk 0:00:11.7]} 31... Nxg3 {[%clk 0:00:11]} 32. hxg3 {[%clk
0:00:12.6]} 32... Qb7 {[%clk 0:00:05.6]} 33. Ng4 {[%clk 0:00:03]} 33... Bf8
{[%clk 0:00:02.7]} 34. Rd4 {[%clk 0:00:03.7]} 34... c3 {[%clk 0:00:03]} 35. Rf4
{[%clk 0:00:03.8]} 35... c2 {[%clk 0:00:03.5]} 36. Kh2 {[%clk 0:00:02.3]} 36...
c1=Q {[%clk 0:00:03.2]} 37. Ne4 {[%clk 0:00:02.8]} 37... Qbb1 {[%clk 0:00:03.4]}
0-1

[Event "Early-Titled-Tuesday-Blitz-February-06-2024"]
[Site "Chess.com"]
[Date "2024.02.06"]
[Round "11"]
[White "GlavkonVVS"]
[Black "GelmanAlexander"]
[Result "1-0"]
[WhiteElo "2641"]
[BlackElo "2755"]
[TimeControl "180+1"]
[EndTime "10:06:46 PST"]
[Termination "GlavkonVVS won on time"]

1. c4 {[%clk 0:03:00.9]} 1... c5 {[%clk 0:02:59.7]} 2. Nc3 {[%clk 0:02:59]} 2...
e6 {[%clk 0:03:00.1]} 3. g3 {[%clk 0:02:59.6]} 3... d6 {[%clk 0:03:00.1]} 4. Bg2
{[%clk 0:02:59.9]} 4... a6 {[%clk 0:03:00.6]} 5. Nf3 {[%clk 0:02:59.1]} 5... Nf6
{[%clk 0:03:01.2]} 6. O-O {[%clk 0:02:57.9]} 6... Be7 {[%clk 0:03:01.8]} 7. e3
{[%clk 0:02:58.3]} 7... Nbd7 {[%clk 0:03:01.3]} 8. d4 {[%clk 0:02:58.9]} 8...
O-O {[%clk 0:03:00.6]} 9. b3 {[%clk 0:02:58.8]} 9... cxd4 {[%clk 0:03:00.4]} 10.
exd4 {[%clk 0:02:56.5]} 10... Re8 {[%clk 0:02:59.8]} 11. Re1 {[%clk 0:02:56.6]}
11... Qc7 {[%clk 0:03:00]} 12. Bb2 {[%clk 0:02:54.2]} 12... Nf8 {[%clk
0:03:00.1]} 13. Rc1 {[%clk 0:02:53.7]} 13... Bd7 {[%clk 0:03:00.2]} 14. d5
{[%clk 0:02:50]} 14... e5 {[%clk 0:03:00.4]} 15. h3 {[%clk 0:02:46.1]} 15... h6
{[%clk 0:02:58.4]} 16. g4 {[%clk 0:02:41.6]} 16... Ng6 {[%clk 0:02:57.2]} 17.
Ne2 {[%clk 0:02:41]} 17... Rac8 {[%clk 0:02:55.3]} 18. Ng3 {[%clk 0:02:28.6]}
18... Nf4 {[%clk 0:02:53.5]} 19. Bf1 {[%clk 0:02:28.4]} 19... Qa5 {[%clk
0:02:48.5]} 20. a3 {[%clk 0:02:24.4]} 20... b5 {[%clk 0:02:47.8]} 21. b4 {[%clk
0:02:20.9]} 21... Qd8 {[%clk 0:02:47.3]} 22. c5 {[%clk 0:02:15.5]} 22... N4xd5
{[%clk 0:02:23.7]} 23. cxd6 {[%clk 0:02:12.5]} 23... Bxd6 {[%clk 0:02:21.4]} 24.
Rxc8 {[%clk 0:02:11.5]} 24... Bxc8 {[%clk 0:02:14]} 25. Nxe5 {[%clk 0:02:11.2]}
25... Qc7 {[%clk 0:01:42.3]} 26. Qd4 {[%clk 0:01:40]} 26... Bb7 {[%clk 0:01:26]}
27. Bg2 {[%clk 0:01:37.3]} 27... Nd7 {[%clk 0:01:15.8]} 28. Bxd5 {[%clk
0:01:35.4]} 28... Rxe5 {[%clk 0:01:00.9]} 29. Rc1 {[%clk 0:00:54.5]} 29... Qxc1+
{[%clk 0:00:32.2]} 30. Bxc1 {[%clk 0:00:53.8]} 30... Rxd5 {[%clk 0:00:33.1]} 31.
Qe3 {[%clk 0:00:51.8]} 31... Rd1+ {[%clk 0:00:27.7]} 32. Nf1 {[%clk 0:00:51.4]}
32... Ne5 {[%clk 0:00:26.3]} 33. f4 {[%clk 0:00:44.9]} 33... Nd3 {[%clk
0:00:21.1]} 34. Qe8+ {[%clk 0:00:40.1]} 34... Kh7 {[%clk 0:00:20.9]} 35. Qxf7
{[%clk 0:00:30.1]} 35... Nxc1 {[%clk 0:00:11.9]} 36. Qxb7 {[%clk 0:00:29.3]}
36... Ne2+ {[%clk 0:00:06.6]} 37. Kf2 {[%clk 0:00:29.2]} 37... Nxf4 {[%clk
0:00:07.5]} 38. Qe4+ {[%clk 0:00:29.3]} 38... Kh8 {[%clk 0:00:07]} 39. h4 {[%clk
0:00:26.8]} 39... Ra1 {[%clk 0:00:02.8]} 40. Qa8+ {[%clk 0:00:22.4]} 40... Kh7
{[%clk 0:00:02.7]} 41. Qxa6 {[%clk 0:00:22.6]} 41... Ra2+ {[%clk 0:00:02.2]} 42.
Kf3 {[%clk 0:00:22.5]} 1-0

[Event "Early-Titled-Tuesday-Blitz-February-06-2024"]
[Site "Chess.com"]
[Date "2024.02.06"]
[Round "11"]
[White "AlmasRakhmatullaev"]
[Black "Jospem"]
[Result "0-1"]
[WhiteElo "2913"]
[BlackElo "3054"]
[TimeControl "180+1"]
[EndTime "10:06:47 PST"]
[Termination "Jospem won on time"]

1. e4 {[%clk 0:03:00]} 1... c5 {[%clk 0:03:00.6]} 2. Nf3 {[%clk 0:03:00.1]} 2...
d6 {[%clk 0:03:01.3]} 3. d4 {[%clk 0:02:59.9]} 3... cxd4 {[%clk 0:03:02.2]} 4.
Qxd4 {[%clk 0:03:00.8]} 4... a6 {[%clk 0:03:03.1]} 5. Be2 {[%clk 0:02:59.8]}
5... Nc6 {[%clk 0:03:03.4]} 6. Qe3 {[%clk 0:03:00.4]} 6... Bg4 {[%clk
0:03:03.8]} 7. h3 {[%clk 0:02:59.6]} 7... Bxf3 {[%clk 0:03:04.1]} 8. Bxf3 {[%clk
0:03:00.5]} 8... Nf6 {[%clk 0:03:05]} 9. O-O {[%clk 0:03:00.7]} 9... g6 {[%clk
0:03:05.5]} 10. Rd1 {[%clk 0:03:00.9]} 10... Nd7 {[%clk 0:03:02.5]} 11. Nc3
{[%clk 0:02:59.6]} 11... Bg7 {[%clk 0:03:02.4]} 12. Nd5 {[%clk 0:03:00.1]} 12...
O-O {[%clk 0:03:02.5]} 13. c3 {[%clk 0:02:59.9]} 13... e6 {[%clk 0:03:02.7]} 14.
Nf4 {[%clk 0:02:58.6]} 14... Qc7 {[%clk 0:02:58.6]} 15. g3 {[%clk 0:02:54.6]}
15... Rfd8 {[%clk 0:02:56.8]} 16. Qe2 {[%clk 0:02:48.7]} 16... Nce5 {[%clk
0:02:55]} 17. Bg2 {[%clk 0:02:48.8]} 17... Nc4 {[%clk 0:02:53.4]} 18. Rb1 {[%clk
0:02:44.6]} 18... Rac8 {[%clk 0:02:45.3]} 19. b3 {[%clk 0:02:35.4]} 19... Na5
{[%clk 0:02:45.5]} 20. c4 {[%clk 0:02:34.6]} 20... Nc6 {[%clk 0:02:46]} 21. Be3
{[%clk 0:02:33.1]} 21... Nc5 {[%clk 0:02:46.4]} 22. h4 {[%clk 0:02:28.6]} 22...
a5 {[%clk 0:02:26.7]} 23. h5 {[%clk 0:02:25.7]} 23... Qe7 {[%clk 0:02:23.6]} 24.
hxg6 {[%clk 0:02:24.1]} 24... hxg6 {[%clk 0:02:24.5]} 25. Nh3 {[%clk 0:01:58.4]}
25... e5 {[%clk 0:02:17]} 26. Bf3 {[%clk 0:01:36.1]} 26... Nd4 {[%clk
0:02:13.4]} 27. Bxd4 {[%clk 0:01:31.3]} 27... exd4 {[%clk 0:02:14.3]} 28. Nf4
{[%clk 0:01:29.5]} 28... Qg5 {[%clk 0:02:02.1]} 29. Kg2 {[%clk 0:01:25.7]} 29...
Re8 {[%clk 0:01:43]} 30. Qc2 {[%clk 0:01:20]} 30... Be5 {[%clk 0:01:35.2]} 31.
Nd5 {[%clk 0:01:16.8]} 31... Kg7 {[%clk 0:01:24.3]} 32. Qd2 {[%clk 0:00:54.2]}
32... Qxd2 {[%clk 0:01:24.2]} 33. Rxd2 {[%clk 0:00:55.1]} 33... Rh8 {[%clk
0:01:25.1]} 34. Re1 {[%clk 0:00:47.4]} 34... Rh6 {[%clk 0:01:16.5]} 35. Rh1
{[%clk 0:00:41.2]} 35... Rxh1 {[%clk 0:01:16.3]} 36. Kxh1 {[%clk 0:00:42.1]}
36... d3 {[%clk 0:01:14.4]} 37. Kg2 {[%clk 0:00:34.3]} 37... Re8 {[%clk
0:01:14.7]} 38. Rd1 {[%clk 0:00:29.9]} 38... Rb8 {[%clk 0:00:52.3]} 39. a3
{[%clk 0:00:22.2]} 39... Nxb3 {[%clk 0:00:43.6]} 40. Rxd3 {[%clk 0:00:22.5]}
40... Nc5 {[%clk 0:00:43.6]} 41. Rd2 {[%clk 0:00:21.3]} 41... b5 {[%clk
0:00:41.4]} 42. cxb5 {[%clk 0:00:21.1]} 42... Rxb5 {[%clk 0:00:42.3]} 43. Ne3
{[%clk 0:00:12.3]} 43... Rb3 {[%clk 0:00:42.7]} 44. Nc4 {[%clk 0:00:12.2]} 44...
a4 {[%clk 0:00:43.4]} 45. Rd5 {[%clk 0:00:11.4]} 45... Rc3 {[%clk 0:00:33]} 46.
Nxe5 {[%clk 0:00:07.5]} 46... dxe5 {[%clk 0:00:33.2]} 47. Rxe5 {[%clk
0:00:08.4]} 47... Nd3 {[%clk 0:00:33.8]} 0-1

[Event "Early-Titled-Tuesday-Blitz-February-06-2024"]
[Site "Chess.com"]
[Date "2024.02.06"]
[Round "11"]
[White "Leonid_Starozhilov"]
[Black "Hovik_Hayrapetyan"]
[Result "0-1"]
[WhiteElo "2721"]
[BlackElo "2891"]
[TimeControl "180+1"]
[EndTime "10:06:47 PST"]
[Termination "Hovik_Hayrapetyan won on time"]

1. e4 {[%clk 0:02:54.9]} 1... c5 {[%clk 0:02:59.6]} 2. Nf3 {[%clk 0:02:54.8]}
2... d6 {[%clk 0:02:59.8]} 3. Bb5+ {[%clk 0:02:54.6]} 3... Nd7 {[%clk
0:02:57.3]} 4. O-O {[%clk 0:02:54.7]} 4... a6 {[%clk 0:02:56.6]} 5. Bxd7+ {[%clk
0:02:55]} 5... Bxd7 {[%clk 0:02:55.7]} 6. Re1 {[%clk 0:02:55.9]} 6... Nf6 {[%clk
0:02:53.4]} 7. c3 {[%clk 0:02:56]} 7... Bc6 {[%clk 0:02:51.9]} 8. d4 {[%clk
0:02:53.6]} 8... Bxe4 {[%clk 0:02:35.2]} 9. Bg5 {[%clk 0:02:53.3]} 9... Bc6
{[%clk 0:02:31.2]} 10. Bxf6 {[%clk 0:02:40.3]} 10... gxf6 {[%clk 0:02:32.1]} 11.
c4 {[%clk 0:02:09.2]} 11... cxd4 {[%clk 0:02:29.7]} 12. Nxd4 {[%clk 0:02:07.8]}
12... Qc7 {[%clk 0:02:17.7]} 13. Nc3 {[%clk 0:02:05.5]} 13... Rg8 {[%clk
0:02:05.7]} 14. Nd5 {[%clk 0:01:57.5]} 14... Bxd5 {[%clk 0:02:04.7]} 15. cxd5
{[%clk 0:01:58.4]} 15... Rc8 {[%clk 0:01:57.4]} 16. Qf3 {[%clk 0:01:01.1]} 16...
Rg5 {[%clk 0:01:52.6]} 17. Qxf6 {[%clk 0:00:47.5]} 17... Rxd5 {[%clk 0:01:51.6]}
18. Nf5 {[%clk 0:00:27.3]} 18... Re5 {[%clk 0:01:49.2]} 19. Ng7+ {[%clk
0:00:11.9]} 19... Bxg7 {[%clk 0:01:40.8]} 20. Qxg7 {[%clk 0:00:12.8]} 20...
Rxe1+ {[%clk 0:01:37.4]} 21. Rxe1 {[%clk 0:00:13.7]} 21... Qa5 {[%clk
0:01:35.5]} 22. Rf1 {[%clk 0:00:11.9]} 22... Qf5 {[%clk 0:01:34.4]} 23. Qg8+
{[%clk 0:00:10.6]} 23... Kd7 {[%clk 0:01:34.3]} 24. Qg3 {[%clk 0:00:11.5]} 24...
Rc2 {[%clk 0:01:24.6]} 25. Qb3 {[%clk 0:00:10.4]} 25... Kc7 {[%clk 0:01:18.3]}
26. h3 {[%clk 0:00:10.5]} 26... Kb8 {[%clk 0:01:17.3]} 27. Qb4 {[%clk
0:00:09.3]} 27... Qc5 {[%clk 0:01:13.6]} 28. Qb3 {[%clk 0:00:09.2]} 28... e6
{[%clk 0:01:11.4]} 29. a4 {[%clk 0:00:09.1]} 29... h5 {[%clk 0:01:05.8]} 30. Qf3
{[%clk 0:00:08.1]} 30... Qf5 {[%clk 0:00:59.7]} 31. Qg3 {[%clk 0:00:07.5]} 31...
e5 {[%clk 0:00:57.1]} 32. b4 {[%clk 0:00:06.9]} 32... Qf4 {[%clk 0:00:52.4]} 33.
Qg8+ {[%clk 0:00:05.9]} 33... Rc8 {[%clk 0:00:50.9]} 34. Qg7 {[%clk 0:00:05.7]}
34... Qxb4 {[%clk 0:00:50.5]} 35. Qxf7 {[%clk 0:00:05.7]} 35... Qxa4 {[%clk
0:00:49.9]} 36. Qxh5 {[%clk 0:00:06.1]} 36... Qd4 {[%clk 0:00:42.3]} 37. Qg6
{[%clk 0:00:05.6]} 37... a5 {[%clk 0:00:42.2]} 38. h4 {[%clk 0:00:04.9]} 38...
a4 {[%clk 0:00:38.7]} 39. h5 {[%clk 0:00:05.5]} 39... a3 {[%clk 0:00:39.2]} 40.
Qb1 {[%clk 0:00:04.5]} 40... Qb2 {[%clk 0:00:33.8]} 41. Qd3 {[%clk 0:00:04.3]}
41... a2 {[%clk 0:00:24.3]} 42. Qxd6+ {[%clk 0:00:04.6]} 42... Ka7 {[%clk
0:00:20.2]} 43. Qd7 {[%clk 0:00:03]} 43... Rc1 {[%clk 0:00:15.4]} 44. Qa4+
{[%clk 0:00:03]} 44... Kb6 {[%clk 0:00:15.4]} 0-1